bitfinex/quotes_ETHUSD_20241009
["timestamp","ask_amount","ask_price","bid_price","bid_amount"]
[1728435955346,0.7662,2437.9,2437.5,8.20497]
[1728435955542,0.7662,2437.9,2437.5,4.10246]
[1728435955879,0.7662,2437.9,2437.7,4.10212]
[1728435956193,0.7662,2437.9,2437.7,8.20424]
[1728435956380,0.7662,2437.9,2437.8,4.10205]
[1728435957193,0.7662,2437.9,2437.7,4.10212]
[1728435958294,0.7662,2437.9,2437.5,4.10244]
[1728435959363,0.7662,2437.9,2437.4,4.10257]
[1728435959549,0.7662,2437.9,2437.6,4.10228]
[1728435959889,0.10345717,2437.8,2437.6,4.10228]
[1728435960189,0.10345717,2437.8,2437.7,4.10222]
[1728435961380,4.58551262,2438.3,2437.8,4.10194]
[1728435961828,0.8109,2438.3,2438.0,4.10171]
[1728435962027,0.8109,2438.6,2438.2,4.10127]
[1728435962191,0.8109,2438.6,2438.1,4.10141]
[1728435962392,0.8109,2438.6,2438.1,8.20284]
[1728435962697,1.70016375,2438.6,2438.1,4.10141]
[1728435962893,1.70016375,2438.6,2438.1,8.20284]
[1728435963097,1.70016375,2438.6,2438.1,4.10141]
[1728435963300,1.70016375,2438.6,2438.2,4.10136]
[1728435963505,0.8109,2438.6,2438.2,4.10136]
[1728435964497,0.8109,2438.6,2437.7,4.92798]
[1728435964713,8.2062,2438.8,2438.3,4.1011]
[1728435964921,8.2062,2438.8,2438.4,4.10101]
[1728435964922,0.7862,2438.8,2438.4,4.10101]
[1728435965951,0.7862,2438.8,2438.6,4.10066]
[1728435966315,0.7862,2438.8,2438.4,4.10099]
[1728435966719,0.7862,2438.8,2438.6,4.10071]
[1728435967227,0.8276,2439.0,2438.7,4.10052]
[1728435967428,0.8276,2439.0,2438.8,4.10025]
[1728435967626,4.60221262,2439.3,2438.8,4.10025]
[1728435968151,4.80576962,2439.3,2438.9,4.1002]
[1728435968655,4.80576962,2439.3,2439.0,4.10001]
[1728435968656,0.8276,2439.3,2439.0,4.10001]
[1728435968857,7.42,2439.5,2439.2,4.0997]
[1728435969018,0.7604,2439.6,2439.2,4.0997]
[1728435969214,3.77461262,2439.9,2439.5,4.0992]
[1728435969449,0.7604,2439.8,2439.5,4.0992]
[1728435969656,0.7604,2439.8,2439.3,8.19886]
[1728435970011,4.53501262,2439.8,2439.4,4.09935]
[1728435970216,4.53501262,2439.8,2439.6,4.09887]
[1728435970217,0.7604,2439.8,2439.6,4.09887]
[1728435970756,0.7604,2439.8,2439.7,4.09886]
[1728435970969,0.8072,2440.1,2439.7,4.09886]
[1728435971121,0.45818126,2440.0,2439.7,4.09886]
[1728435971535,0.8072,2440.1,2439.9,4.09852]
[1728435971918,0.7561,2440.4,2440.1,4.09818]
[1728435972228,0.7561,2440.4,2440.3,4.09785]
[1728435972434,0.7561,2440.4,2440.1,4.09818]
[1728435973030,0.7561,2440.4,2440.1,8.19626]
[1728435973463,0.7561,2440.4,2440.2,4.09795]
[1728435974285,0.7561,2440.4,2440.1,8.19616]
[1728435974618,0.7561,2440.4,2440.1,4.09808]
[1728435975220,0.10303956,2440.3,2440.0,4.09835]
[1728435975447,0.10303956,2440.3,2440.1,4.09819]
[1728435975630,0.10303956,2440.3,2440.0,4.09835]
[1728435975844,0.10303956,2440.3,2439.8,4.09863]
[1728435976416,0.10303956,2440.3,2439.9,4.0985]
[1728435976917,0.10303956,2440.3,2439.8,4.09863]
[1728435977122,0.10303956,2440.3,2439.9,4.09852]
[1728435977547,0.10303956,2440.3,2439.8,4.09859]
[1728435977857,0.10303956,2440.3,2439.9,4.09852]
[1728435978323,0.10303956,2440.3,2439.8,4.09859]
[1728435978527,0.10303956,2440.3,2439.9,4.0985]
[1728435978752,0.10303956,2440.3,2439.8,4.09857]
[1728435982991,4.69659352,2440.3,2439.6,4.09895]
[1728435983172,4.86486,2440.2,2439.6,4.0989]
[1728435983376,4.9678056,2440.2,2439.6,4.0989]
[1728435984554,4.9678056,2440.2,2439.3,0.7867]
[1728435984555,0.8696456,2440.2,2439.8,4.09868]
[1728435984787,0.8696456,2440.2,2439.8,8.19723]
[1728435985152,0.1029456,2440.2,2440.0,4.09822]
[1728435985348,0.7667,2440.4,2440.0,4.09822]
[1728435985549,0.10293754,2440.1,2440.0,4.09822]
[1728435985795,0.7667,2440.4,2440.0,4.09822]
[1728435986086,0.10293704,2440.1,2440.0,4.09822]
[1728435986252,0.7667,2440.4,2440.0,4.09822]
[1728435986449,0.10293704,2440.1,2439.8,8.19721]
[1728435986651,1.253123,2440.4,2439.9,4.09851]
[1728435986895,0.10267808,2440.0,2439.9,4.09851]
[1728435987182,0.10280492,2440.0,2439.9,4.09852]
[1728435987352,1.253123,2440.4,2439.8,4.09858]
[1728435987555,1.253123,2440.4,2440.0,4.09833]
[1728435988895,4.96015407,2442.5,2440.0,4.09833]
[1728435988896,16.44659,2441.1,2440.4,4.09754]
[1728435989097,0.7804,2441.0,2440.5,4.09736]
[1728435990009,0.09684607,2440.9,2440.6,4.09733]
[1728435991106,4.19381607,2440.9,2440.2,4.09791]
[1728435991270,4.19381607,2440.9,2440.0,0.7619]
[1728435991271,0.8296,2440.6,2440.1,4.09817]
[1728435991824,0.0963236,2440.5,2440.1,4.09817]
[1728435992358,0.0963236,2440.5,2440.2,4.098]
[1728435992586,0.0963236,2440.5,2440.2,4.09792]
[1728435992756,0.0963236,2440.5,2440.2,4.0979]
[1728435992969,0.0963236,2440.5,2440.3,4.09775]
[1728435993169,0.0963236,2440.5,2440.4,4.09768]
[1728435993372,0.7837,2440.8,2440.4,4.09768]
[1728435993568,0.0963261,2440.5,2440.4,4.09768]
[1728435993784,1.23403157,2440.8,2440.4,4.09768]
[1728435993990,0.09619928,2440.5,2440.1,4.09807]
[1728435994212,4.0972,2440.7,2440.1,8.19611]
[1728435994378,0.0960672,2440.4,2440.1,8.19611]
[1728435994563,4.0972,2440.7,2440.1,8.19611]
[1728435994896,0.09606192,2440.3,2440.1,8.19611]
[1728435995194,0.09592982,2440.2,2440.1,8.19611]
[1728435995506,1.23403157,2440.8,2440.3,4.09785]
[1728435996574,5.01189407,2440.8,2440.3,4.09785]
[1728435996995,9.10890407,2440.8,2440.3,4.09785]
[1728435997175,1.3723357,2440.7,2440.3,4.09776]
[1728435997372,0.7837,2440.8,2440.5,4.0975]
[1728435997701,4.5615625,2440.8,2440.4,4.09766]
[1728435998102,4.5615625,2440.8,2440.5,4.0975]
[1728435998972,0.7837,2440.8,2440.5,4.0975]
[1728435999358,3.97989533,2441.0,2440.5,4.0975]
[1728435999359,0.8297,2441.0,2440.5,4.76726876]
[1728435999568,0.8297,2441.0,2440.7,4.09708]
[1728435999804,8.2497,2441.2,2440.9,4.09684]
[1728436000101,0.8297,2441.5,2440.9,4.09684]
[1728436000309,0.2064525,2441.4,2441.1,4.09651]
[1728436000683,0.8297,2441.5,2441.1,4.09651]
[1728436000865,3.7778625,2441.3,2440.8,4.09691]
[1728436001066,4.66880229,2441.3,2440.8,4.09691]
[1728436001406,7.8740625,2441.3,2440.7,8.19416]
[1728436001609,7.8740625,2441.3,2440.7,4.09707]
[1728436002403,3.7778625,2441.3,2440.8,4.09698]
[1728436002909,3.7778625,2441.3,2440.9,4.0968]
[1728436003269,3.7778625,2441.3,2440.8,4.097]
[1728436003479,5.07839029,2441.3,2440.8,4.097]
[1728436004515,5.07839029,2441.3,2440.9,4.09683]
[1728436004814,9.17456029,2441.3,2440.7,8.19415]
[1728436004970,0.08748633,2441.2,2440.7,8.19415]
[1728436005171,0.08748633,2441.2,2440.8,4.09699]
[1728436005582,9.17456029,2441.3,2440.8,4.09699]
[1728436005782,9.17456029,2441.3,2440.7,4.09707]
[1728436005783,0.08719532,2441.1,2440.9,4.09684]
[1728436006002,5.07839029,2441.3,2440.9,4.09684]
[1728436006225,0.08722235,2441.0,2440.9,4.09684]
[1728436006521,5.07839029,2441.3,2440.9,4.09684]
[1728436006677,0.08722235,2441.0,2440.9,4.09684]
[1728436006880,0.08722235,2441.0,2440.7,4.09709]
[1728436007081,3.7778625,2441.3,2440.8,4.097]
[1728436007284,0.08696356,2440.9,2440.8,4.097]
[1728436007822,5.07839329,2441.3,2440.8,4.097]
[1728436007993,0.08709034,2440.9,2440.8,4.097]
[1728436008507,3.7778625,2441.3,2440.9,4.09678]
[1728436008836,3.7778625,2441.3,2440.8,4.097]
[1728436008989,4.66879129,2441.3,2440.8,4.097]
[1728436009683,4.66879129,2441.3,2440.9,4.09682]
[1728436009883,3.7778625,2441.3,2440.8,4.097]
[1728436010080,8.90928791,2441.5,2441.0,4.09667]
[1728436012445,11.51561,2441.7,2441.4,4.09601]
[1728436012446,7.42,2441.7,2441.4,4.09601]
[1728436012739,7.8731225,2441.9,2441.5,4.09583]
[1728436012740,0.7546,2441.8,2441.5,4.09583]
[1728436013224,0.20806414,2441.9,2441.6,8.19124]
[1728436013414,8.1746,2442.2,2441.9,4.09516]
[1728436013743,2.15036307,2442.2,2441.7,4.09537]
[1728436013895,0.95511682,2442.2,2441.7,4.09537]
[1728436014096,0.95511682,2442.2,2441.5,4.0957]
[1728436014384,0.95511682,2442.2,2441.8,4.09532]
[1728436014934,0.7546,2442.2,2441.8,4.09524]
[1728436015132,0.7541,2442.4,2441.8,4.91724]
[1728436016009,0.7541,2442.4,2442.0,4.09498]
[1728436016220,0.95558111,2442.4,2442.0,4.09498]
[1728436016438,0.95558111,2442.4,2441.8,4.91724]
[1728436016741,0.95558111,2442.4,2442.0,8.18988]
[1728436016937,0.8054,2442.6,2442.3,4.0945]
[1728436017148,7.42,2442.7,2442.4,0.7893]
[1728436017437,0.1224903,2442.9,2442.6,4.09388]
[1728436017999,0.1224903,2442.9,2442.7,4.09381]
[1728436018235,0.1224903,2442.9,2442.7,4.09369]
[1728436018541,0.1224903,2442.9,2442.8,8.6301225]
[1728436019930,0.1224903,2442.9,2442.8,4.85226]
[1728436021375,0.1224903,2442.9,2442.8,8.6301225]
[1728436021580,16.44138,2444.2,2442.8,8.6301225]
[1728436021581,7.62766824,2444.3,2442.8,7.3278625]
[1728436021927,0.06460424,2444.2,2444.0,4.84504]
[1728436022183,4.89292,2444.8,2444.1,4.09148]
[1728436022336,4.89292,2444.8,2444.2,0.893642]
[1728436022337,0.06459034,2444.7,2444.2,0.893642]
[1728436022536,0.06459034,2444.7,2444.2,4.984932]
[1728436022776,4.09082,2444.5,2444.2,0.893642]
[1728436022942,4.09082,2444.5,2444.0,0.7534]
[1728436022943,0.06432207,2444.4,2444.0,0.7534]
[1728436023644,4.89286,2444.8,2444.1,4.09147]
[1728436023645,0.20467667,2444.7,2444.1,4.09147]
[1728436023851,0.06406385,2444.3,2444.1,4.09147]
[1728436024160,0.06405879,2444.2,2443.7,4.09208]
[1728436024367,0.8164,2444.2,2443.7,4.501288]
[1728436024565,0.06372014,2444.1,2443.8,4.09197]
[1728436024880,0.06372014,2444.1,2443.7,4.501288]
[1728436025387,4.90772,2444.2,2443.6,0.8]
[1728436025568,4.15515178,2444.1,2443.6,0.8]
[1728436025878,4.09166,2444.0,2443.4,0.7796]
[1728436026185,0.06248913,2443.9,2443.4,4.87225]
[1728436026335,8.99919,2444.2,2443.5,0.896494]
[1728436026532,0.06312581,2444.1,2443.5,4.988974]
[1728436027178,0.06312581,2444.1,2443.5,0.896494]
[1728436027334,4.09165,2444.0,2443.5,0.896494]
[1728436027537,0.06304326,2443.9,2443.5,0.896494]
[1728436027987,0.06304326,2443.9,2443.3,4.09282]
[1728436028279,0.06304326,2443.9,2443.2,3.0]
[1728436028280,4.35739459,2443.9,2443.2,3.0]
[1728436028440,4.35739459,2443.9,2443.1,4.86554]
[1728436028792,4.35728459,2443.9,2443.3,4.09282]
[1728436028939,4.35728459,2443.9,2443.1,4.86554]
[1728436028940,4.09199,2443.8,2443.1,4.86554]
[1728436029140,0.06277982,2443.7,2443.2,0.486554]
[1728436029364,0.8083,2443.6,2442.9,1.18309215]
[1728436029582,4.90072,2443.6,2443.0,4.09331]
[1728436029893,0.06238968,2443.5,2442.9,5.27656215]
[1728436030070,0.06238968,2443.5,2443.0,4.09332]
[1728436030394,0.06238968,2443.5,2443.0,1.01596822]
[1728436030597,0.06238968,2443.5,2443.0,5.10928822]
[1728436031009,0.06238968,2443.5,2443.0,1.01596822]
[1728436031384,0.06238968,2443.5,2443.0,5.10923822]
[1728436031774,0.06238968,2443.5,2443.0,1.01596822]
[1728436032208,4.15497968,2443.5,2442.9,5.27656215]
[1728436032409,4.15497968,2443.5,2442.5,3.0]
[1728436032410,4.09327,2443.1,2442.5,4.09409]
[1728436032708,4.8789,2442.9,2442.3,4.84611]
[1728436032905,4.8789,2442.9,2442.4,0.484611]
[1728436033109,0.06155499,2442.8,2442.4,4.578911]
[1728436033312,0.06155499,2442.8,2442.4,0.484611]
[1728436033517,0.06155499,2442.8,2442.5,0.5330721]
[1728436033678,0.06155499,2442.8,2442.3,8.94049]
[1728436033679,0.06155499,2442.8,2442.3,8.94044]
[1728436033876,0.06155499,2442.8,2442.4,4.09431]
[1728436034576,0.06155499,2442.8,2442.5,4.09415]
[1728436035311,0.06155499,2442.8,2442.7,4.09383]
[1728436035705,0.7854,2443.3,2442.8,4.09363]
[1728436035890,0.98789252,2443.3,2442.8,4.09363]
[1728436036075,0.7854,2443.3,2442.8,4.09363]
[1728436037474,4.87824,2443.3,2442.6,4.09399]
[1728436037678,4.87824,2443.3,2442.7,4.09382]
[1728436038321,0.7854,2443.3,2442.8,4.09352]
[1728436038502,0.7854,2443.3,2442.8,4.87842]
[1728436038704,0.7854,2443.3,2442.9,4.09347]
[1728436039079,19.77,2443.8,2442.9,4.990529]
[1728436039080,0.7591,2443.6,2442.9,4.990529]
[1728436039288,0.7591,2443.6,2443.2,4.09288]
[1728436039606,4.29821495,2443.9,2443.3,4.09271]
[1728436039607,0.7591,2443.8,2443.3,4.09271]
[1728436040220,0.7591,2443.8,2443.2,4.09288]
[1728436040221,4.8511,2443.8,2443.2,4.09288]
[1728436040520,0.7591,2443.8,2443.2,8.18576]
[1728436040719,0.7591,2443.8,2443.3,0.818576]
[1728436041094,0.7591,2443.8,2443.4,4.09262]
[1728436041422,0.7591,2443.8,2443.3,5.694966]
[1728436041723,0.7591,2443.8,2443.3,1.602176]
[1728436041923,0.7591,2443.8,2443.3,5.694986]
[1728436042133,0.7591,2443.8,2443.3,0.818576]
[1728436042134,4.09218,2443.7,2443.3,0.818576]
[1728436042418,4.09218,2443.7,2443.0,8.1866]
[1728436042617,4.09218,2443.7,2443.1,4.09313]
[1728436042984,4.09218,2443.7,2442.9,1.718089]
[1728436042985,0.8185,2443.4,2442.9,4.990669]
[1728436043221,4.91118,2443.4,2442.9,0.897189]
[1728436043423,0.8185,2443.4,2442.9,0.897189]
[1728436043606,0.8185,2443.4,2442.9,4.990649]
[1728436043992,0.8185,2443.4,2442.9,0.897189]
[1728436044193,0.8185,2443.4,2442.7,3.8048]
[1728436044490,4.09312,2443.2,2442.6,4.09395]
[1728436044895,0.05723909,2443.1,2442.6,4.09395]
[1728436046194,0.05723909,2443.1,2442.7,4.09382]
[1728436046394,4.09294,2443.3,2442.7,4.09382]
[1728436046638,0.0575262,2443.2,2442.6,4.09388]
[1728436047016,4.09294,2443.3,2442.6,4.09388]
[1728436047399,0.05752187,2443.2,2442.6,8.18778]
[1728436047623,4.09293,2443.3,2442.6,9.087038]
[1728436048045,0.05725978,2443.2,2442.6,9.087038]
[1728436048617,0.05725978,2443.2,2442.7,4.09377]
[1728436048945,0.05725978,2443.2,2442.6,9.087028]
[1728436049240,0.05725978,2443.2,2442.6,4.993138]
[1728436049550,0.05725978,2443.2,2442.7,4.6736238]
[1728436049753,0.05725978,2443.2,2442.8,4.09365]
[1728436050045,4.29572298,2443.3,2442.8,4.09365]
[1728436050347,0.05712796,2443.1,2442.8,4.09365]
[1728436050553,0.05752187,2443.2,2442.8,4.09365]
[1728436050854,0.8185,2443.4,2442.8,5.06018818]
[1728436051022,0.8104,2443.7,2443.2,4.09295]
[1728436051345,0.8104,2443.7,2443.2,4.09288]
[1728436052209,0.8104,2443.7,2442.9,4.09339]
[1728436052210,0.7647,2443.5,2442.9,4.09339]
[1728436053435,4.85729,2443.5,2442.9,8.18678]
[1728436053638,0.7647,2443.5,2443.0,4.09322]
[1728436053967,0.7647,2443.5,2443.2,4.09297]
[1728436054561,0.7647,2443.5,2443.1,8.18606]
[1728436054732,0.7647,2443.5,2443.1,4.093]
[1728436055121,4.85722,2443.5,2442.9,4.09344]
[1728436055631,0.7647,2443.5,2443.0,4.0932]
[1728436055861,0.7647,2443.5,2443.1,4.911664]
[1728436056030,16.51223553,2444.3,2443.5,4.09241]
[1728436056031,0.813,2443.8,2443.5,4.09241]
[1728436056356,4.09151,2444.1,2443.4,4.0926]
[1728436056357,0.8044,2444.0,2443.4,4.0926]
[1728436056519,0.8044,2444.0,2443.5,4.09237]
[1728436056827,0.80295665,2444.0,2443.5,4.09237]
[1728436057029,0.80295665,2444.0,2443.4,4.09255]
[1728436057752,4.89468665,2444.0,2443.4,4.09255]
[1728436057952,4.89468665,2444.0,2443.5,4.09248]
[1728436057953,0.80295665,2444.0,2443.5,4.09248]
[1728436058159,0.80295665,2444.0,2443.4,4.990062]
[1728436058160,4.89472665,2444.0,2443.4,4.990062]
[1728436058860,0.80295665,2444.0,2443.4,4.990062]
[1728436059068,0.80295665,2444.0,2443.5,4.09246]
[1728436060330,0.80295665,2444.0,2443.4,4.990062]
[1728436060531,4.09186,2443.9,2443.4,4.990062]
[1728436061349,4.09186,2443.9,2443.3,4.09279]
[1728436061768,4.09186,2443.9,2443.2,4.09293]
[1728436061923,4.09242,2443.6,2443.0,4.09325]
[1728436062264,0.8083,2443.5,2443.1,4.09314]
[1728436062422,0.8083,2443.5,2443.1,4.911779]
[1728436063023,0.8083,2443.5,2443.2,4.09296]
[1728436063460,0.8083,2443.5,2443.1,0.818639]
[1728436063635,0.8083,2443.5,2443.2,4.09298]
[1728436065068,0.05551283,2443.4,2443.2,4.09298]
[1728436066052,0.05551283,2443.4,2443.3,4.09282]
[1728436066445,0.79,2443.8,2443.4,4.09253]
[1728436066620,0.79,2443.8,2443.3,4.09282]
[1728436066621,0.79,2443.8,2443.5,4.09247]
[1728436066997,0.79,2443.8,2443.5,4.910999]
[1728436069483,0.809,2444.0,2443.6,4.09222]
[1728436071248,0.809,2444.0,2443.5,4.09247]
[1728436071443,0.809,2444.0,2443.4,4.09262]
[1728436071648,4.90075,2444.0,2443.4,4.990935]
[1728436072379,0.809,2444.0,2443.5,4.09247]
[1728436073540,4.90069,2444.0,2443.5,4.09247]
[1728436078393,4.09216,2443.7,2443.2,4.89078]
[1728436078560,0.8307,2443.6,2443.2,0.7978]
[1728436078760,0.8307,2443.6,2443.2,0.78908]
[1728436080076,0.05434733,2443.5,2443.2,0.78908]
[1728436080450,0.05434733,2443.5,2443.2,4.88204]
[1728436080990,0.8307,2443.6,2443.2,4.88204]
[1728436081149,0.8307,2443.6,2443.2,0.78908]
[1728436081470,0.8307,2443.6,2443.2,4.88197]
[1728436081790,0.8307,2443.6,2443.3,4.580907]
[1728436083386,0.8307,2443.6,2443.3,0.488197]
[1728436083761,0.8307,2443.6,2443.3,4.580997]
[1728436085462,0.05434412,2443.5,2443.3,4.580997]
[1728436085982,0.8307,2443.6,2443.3,0.488197]
[1728436086191,0.8307,2443.6,2443.2,0.78908]
[1728436086192,0.7774,2444.0,2443.5,4.09233]
[1728436086894,0.7774,2444.0,2443.4,4.88755]
[1728436087194,0.7774,2444.0,2443.6,4.09229]
[1728436087985,0.7774,2444.0,2443.4,4.88755]
[1728436088286,4.86915,2444.0,2443.4,4.88754]
[1728436088464,4.86915,2444.0,2443.5,4.581234]
[1728436088854,4.09183,2443.9,2443.5,0.488754]
[1728436089171,0.7774,2444.0,2443.5,4.09247]
[1728436090396,0.7774,2444.0,2443.4,4.09254]
[1728436090557,0.7774,2444.0,2443.6,4.09231]
[1728436092275,0.20589886,2444.2,2443.6,4.09231]
[1728436092476,1.03219886,2444.2,2443.7,0.7899]
[1728436092676,1.03219886,2444.2,2443.8,4.580111]
[1728436093094,1.03219886,2444.2,2443.8,8.672001]
[1728436093316,0.8262,2444.6,2444.0,4.09163]
[1728436093482,0.8262,2444.6,2444.2,8.18238]
[1728436093676,0.8262,2444.6,2444.3,4.09115]
[1728436094289,0.20925362,2444.6,2444.5,4.86561]
[1728436094527,0.20925362,2444.6,2444.5,8.63373069]
[1728436095019,4.08992,2445.1,2444.4,4.909103]
[1728436095175,2.07635892,2445.0,2444.5,4.09071]
[1728436095519,4.97156485,2445.0,2444.4,4.09087]
[1728436095816,0.88157485,2445.0,2444.4,4.09086]
[1728436096117,0.88157485,2445.0,2444.4,8.18173]
[1728436096325,0.88157485,2445.0,2444.4,4.09086]
[1728436096480,1.08689968,2445.0,2444.5,0.486936]
[1728436096680,5.17687968,2445.0,2444.5,0.486936]
[1728436097614,4.09015,2444.9,2444.5,0.486936]
[1728436097827,4.09015,2444.9,2444.2,4.09123]
[1728436097828,0.7796,2444.9,2444.2,4.09123]
[1728436098122,8.23289165,2444.8,2444.2,4.09123]
[1728436098317,4.14244165,2444.8,2444.2,4.09123]
[1728436098493,4.14244165,2444.8,2444.2,5.285838]
[1728436099015,8.23287165,2444.8,2444.2,5.285838]
[1728436099222,4.14244165,2444.8,2444.2,5.285838]
[1728436099822,4.09052,2444.7,2444.2,5.285838]
[1728436099983,0.05162181,2444.6,2444.2,5.285838]
[1728436100528,0.05162181,2444.6,2444.0,8.1831]
[1728436100529,0.8278,2444.5,2444.0,8.1831]
[1728436100686,4.14228181,2444.6,2444.3,4.09104]
[1728436100687,0.05162181,2444.6,2444.3,4.09104]
[1728436100899,0.8278,2444.7,2444.3,4.09104]
[1728436100900,0.04989549,2444.4,2444.3,4.09104]
[1728436101146,0.8278,2444.7,2444.3,4.09104]
[1728436101306,8.38542483,2445.0,2444.5,4.09067]
[1728436101307,1.02812483,2445.0,2444.5,4.09067]
[1728436101507,0.05015878,2444.6,2444.5,4.09067]
[1728436101817,1.02812483,2445.0,2444.6,4.09063]
[1728436101999,0.05042857,2444.9,2444.6,4.09063]
[1728436105443,0.05042857,2444.9,2444.8,4.09031]
[1728436105655,0.1224903,2445.4,2445.1,4.08971]
[1728436106151,4.2118003,2445.4,2444.9,4.09004]
[1728436106304,0.1224903,2445.4,2445.0,4.08997]
[1728436106509,0.1224903,2445.4,2444.9,4.09004]
[1728436106831,0.1224903,2445.4,2444.9,4.580374]
[1728436107033,0.1224903,2445.4,2445.3,4.08947]
[1728436107206,0.1224903,2445.4,2444.9,0.490334]
[1728436107207,0.1224903,2445.4,2445.0,4.08982]
[1728436107411,0.1224903,2445.4,2444.9,0.490334]
[1728436107607,0.809,2445.3,2444.8,4.09019]
[1728436108144,4.89861,2445.3,2444.6,4.90384]
[1728436108531,4.89861,2445.3,2444.7,4.09045]
[1728436108732,4.89858,2445.3,2444.6,8.99435]
[1728436108937,4.89858,2445.3,2444.7,5.0716114]
[1728436109631,0.809,2445.3,2444.7,0.9812514]
[1728436109832,4.08964,2445.2,2444.7,0.9812514]
[1728436110146,0.04873901,2445.1,2444.6,8.99434]
[1728436110647,0.04873901,2445.1,2444.6,4.90381]
[1728436111209,0.04873901,2445.1,2444.6,8.99435]
[1728436111816,0.04873901,2445.1,2444.6,4.90381]
[1728436112018,0.04873901,2445.1,2444.7,0.490381]
[1728436112251,4.09042,2444.8,2444.2,4.09124]
[1728436112419,0.04833918,2444.7,2444.2,4.0912]
[1728436112745,0.04833918,2444.7,2444.2,8.18241]
[1728436112946,0.04833918,2444.7,2444.3,0.896381]
[1728436113147,8.18088,2444.8,2444.3,0.896381]
[1728436113449,0.83494208,2444.7,2444.2,8.18246]
[1728436113653,0.83494208,2444.7,2444.2,4.0912]
[1728436113951,0.83494208,2444.7,2444.3,4.09111]
[1728436114155,0.83494208,2444.7,2444.4,0.818231]
[1728436114814,0.7867,2444.7,2444.4,0.818231]
[1728436115146,0.04811045,2444.6,2444.2,4.8908]
[1728436115350,0.04811045,2444.6,2444.2,4.0912]
[1728436115909,0.04811045,2444.6,2444.0,4.09157]
[1728436116116,4.13877045,2444.6,2444.0,4.09157]
[1728436116545,4.13877045,2444.6,2444.0,8.18312]
[1728436116751,4.13877045,2444.6,2444.2,4.0913]
[1728436116752,0.04811045,2444.6,2444.2,4.0913]
[1728436117050,0.04811045,2444.6,2443.9,0.7798]
[1728436117051,4.87935,2444.5,2443.9,4.09181]
[1728436117213,0.04784392,2444.4,2443.8,4.580111]
[1728436117410,0.7884,2444.2,2443.8,0.488221]
[1728436117663,0.04757552,2444.1,2443.8,0.488221]
[1728436118014,0.04757552,2444.1,2443.8,4.580181]
[1728436118438,0.04757552,2444.1,2443.8,0.488221]
[1728436118641,0.04757552,2444.1,2444.0,4.09165]
[1728436118858,0.7884,2444.5,2444.2,4.09125]
[1728436119020,0.04782978,2444.4,2444.1,4.09138]
[1728436120762,0.04782978,2444.4,2444.1,8.18276]
[1728436120967,0.04782978,2444.4,2444.1,4.09138]
[1728436122042,0.04782978,2444.4,2444.1,8.18276]
[1728436122338,0.04782978,2444.4,2444.2,0.90499291]
[1728436122540,0.04782978,2444.4,2444.1,4.09138]
[1728436122936,0.04782978,2444.4,2444.2,4.0913]
[1728436123466,0.789,2444.7,2444.2,4.09121]
[1728436123641,0.04794634,2444.6,2444.3,4.09105]
[1728436123842,0.04794634,2444.6,2444.4,0.818226]
[1728436125272,0.04794634,2444.6,2444.2,4.09121]
[1728436126374,0.04794634,2444.6,2444.2,8.18242]
[1728436126541,0.04794634,2444.6,2444.2,4.09121]
[1728436127280,0.04794634,2444.6,2444.3,4.09113]
[1728436129071,0.04794634,2444.6,2444.2,4.09121]
[1728436129274,0.04794634,2444.6,2444.2,4.909489]
[1728436129432,0.04794634,2444.6,2444.3,4.09114]
[1728436130343,0.04794634,2444.6,2444.2,0.818279]
[1728436130551,0.04794634,2444.6,2444.2,4.09121]
[1728436130896,0.04794634,2444.6,2444.4,4.09096]
[1728436131858,0.789,2444.7,2444.4,4.09096]
[1728436132158,0.04794851,2444.6,2444.4,4.09096]
[1728436133980,0.04794851,2444.6,2444.4,4.09088]
[1728436134174,0.04794851,2444.6,2444.2,4.913]
[1728436134376,0.04794851,2444.6,2444.3,4.09113]
[1728436135257,0.04794851,2444.6,2444.4,4.09093]
[1728436135462,0.04794851,2444.6,2444.2,5.40431]
[1728436135662,0.04794851,2444.6,2444.2,9.49551]
[1728436136059,4.13861851,2444.6,2444.2,0.4913]
[1728436136300,4.13861851,2444.6,2443.9,0.8307]
[1728436136301,0.8002,2444.5,2443.9,0.8307]
[1728436136605,0.8002,2444.5,2444.0,4.09164]
[1728436136772,0.04765302,2444.4,2444.0,4.09164]
[1728436137290,0.04765302,2444.4,2444.0,4.09155]
[1728436139301,0.04765302,2444.4,2444.1,4.09145]
[1728436139904,0.04765302,2444.4,2444.2,4.09127]
[1728436144016,0.04765302,2444.4,2444.3,4.09115]
[1728436144197,0.04765302,2444.4,2444.3,4.88435]
[1728436144582,0.7887,2444.7,2444.3,4.88435]
[1728436144768,0.04758982,2444.4,2444.3,5.781912]
[1728436144988,0.7887,2444.7,2444.4,4.09086]
[1728436147587,1.03730671,2444.9,2444.3,5.781912]
[1728436147783,1.03730671,2444.9,2444.5,4.0908]
[1728436147999,1.03730671,2444.9,2444.5,5.0780622]
[1728436149419,4.09032,2444.8,2444.3,4.88426]
[1728436149672,1.03730671,2444.9,2444.0,5.3418081]
[1728436149673,4.09082,2444.5,2444.0,5.3418081]
[1728436149803,4.09082,2444.5,2444.0,4.09157]
[1728436150420,4.85356,2444.6,2444.0,4.09157]
[1728436152081,4.85356,2444.6,2443.9,7.09172]
[1728436152082,0.7628,2444.6,2444.2,4.0912]
[1728436152294,0.7855,2444.8,2444.4,4.09097]
[1728436153627,0.7855,2444.8,2444.4,8.18185]
[1728436153829,0.7855,2444.8,2444.5,4.0908]
[1728436154643,0.7855,2444.8,2444.4,4.09088]
[1728436154833,0.7855,2444.8,2444.2,4.91418]
[1728436154994,0.04788662,2444.7,2444.2,5.405598]
[1728436155194,7.90650731,2444.7,2444.2,0.491418]
[1728436155396,7.90650731,2444.7,2444.0,8.95129]
[1728436155397,0.7788,2444.5,2444.0,8.95128]
[1728436155693,0.0475861,2444.4,2444.0,4.85973]